bitfinex/quotes_SOLUSD_20241222
["timestamp","ask_amount","ask_price","bid_price","bid_amount"]
[1734859284577,20.0,184.88,184.77,11.12905152]
[1734859284754,6.3021,184.86,184.78,20.0]
[1734859284958,1.01446342,184.85,184.78,20.0]
[1734859285670,1.01449993,184.85,184.78,20.0]
[1734859285876,1.6291,184.84,184.73,1.5756]
[1734859286051,1.01456352,184.83,184.73,13.45560424]
[1734859287181,1.01456352,184.83,184.76,20.0]
[1734859287555,21.01456352,184.83,184.73,0.75095272]
[1734859287890,21.01456352,184.83,184.73,11.88000424]
[1734859288061,21.01456352,184.83,184.73,0.75095272]
[1734859288259,21.01456352,184.83,184.73,11.88000424]
[1734859288867,21.01456352,184.83,184.74,23.776884]
[1734859289203,1.6291,184.84,184.76,23.776884]
[1734859290405,1.6291,184.84,184.78,23.776884]
[1734859295791,1.6291,184.84,184.8,23.776884]
[1734859296369,1.6291,184.84,184.76,11.87955109]
[1734859296715,1.6291,184.84,184.77,23.776884]
[1734859297991,1.01451668,184.83,184.72,24.66275152]
[1734859298173,1.01451668,184.83,184.72,11.12905152]
[1734859298377,1.6291,184.84,184.76,11.12905152]
[1734859298571,1.6291,184.84,184.77,0.75067657]
[1734859299388,1.6291,184.84,184.78,23.776884]
[1734859299563,1.6291,184.84,184.79,0.75070479]
[1734859299987,1.6291,184.84,184.78,23.776884]
[1734859301092,6.3021,184.86,184.78,23.776884]
[1734859301295,1.6129,184.88,184.8,23.776884]
[1734859301793,1.6129,184.88,184.82,23.776884]
[1734859303004,1.6129,184.88,184.84,23.776884]
[1734859303882,6.0436,184.9,184.84,23.776884]
[1734859320923,1.01411747,184.89,184.8,20.0]
[1734859322912,1.01411747,184.89,184.75,11.12905152]
[1734859322913,20.0,184.87,184.75,11.12905152]
[1734859323092,2.52682096,184.86,184.75,0.75086761]
[1734859323497,2.52682096,184.86,184.76,11.12905152]
[1734859323906,2.52682096,184.86,184.77,0.75074053]
[1734859324107,1.5123,184.86,184.77,0.75074053]
[1734859324814,1.5123,184.86,184.78,23.776884]
[1734859328633,1.01441216,184.85,184.78,23.776884]
[1734859328797,6.4592,184.84,184.72,13.47890152]
[1734859328996,1.01468253,184.83,184.72,11.87970152]
[1734859329200,1.01468253,184.83,184.72,0.75065]
[1734859329793,1.01468253,184.83,184.72,11.87970152]
[1734859330314,1.5123,184.82,184.69,11.12905152]
[1734859330618,6.4592,184.78,184.66,11.12905152]
[1734859330817,20.0,184.75,184.64,11.12905152]
[1734859331019,1.01521243,184.74,184.63,8.4900846]
[1734859331322,21.01522616,184.75,184.65,11.12905152]
[1734859331498,1.5123,184.76,184.67,11.12905152]
[1734859331707,1.5123,184.76,184.66,0.75190321]
[1734859331708,1.5123,184.76,184.68,11.88068384]
[1734859331904,1.01486878,184.75,184.66,11.12905152]
[1734859332218,1.01486878,184.75,184.65,11.12905152]
[1734859332825,21.01486878,184.75,184.63,11.12905152]
[1734859333209,21.01486878,184.75,184.65,11.12905152]
[1734859333401,1.5123,184.76,184.66,0.75192503]
[1734859333602,1.5123,184.76,184.67,34.90593552]
[1734859333815,1.01498338,184.75,184.67,34.90593552]
[1734859334001,2.52728338,184.76,184.67,34.90593552]
[1734859334404,2.52728338,184.76,184.65,11.12905152]
[1734859334598,2.52728338,184.76,184.66,23.776884]
[1734859334797,2.52728338,184.76,184.65,23.776884]
[1734859335012,20.0,184.75,184.65,23.776884]
[1734859335205,1.01517931,184.74,184.64,23.776884]
[1734859335418,1.01517931,184.74,184.65,11.12905152]
[1734859335606,1.01517931,184.74,184.66,23.776884]
[1734859337009,2.52735411,184.76,184.66,34.90593552]
[1734859337922,2.52735411,184.76,184.66,23.776884]
[1734859338418,20.0,184.75,184.63,11.12905152]
[1734859338623,1.01522933,184.74,184.64,23.776884]
[1734859343536,1.01522933,184.74,184.64,34.90593552]
[1734859345745,2.52745885,184.76,184.67,34.90593552]
[1734859345931,1.5123,184.76,184.68,11.12905152]
[1734859346113,1.5123,184.76,184.69,11.12905152]
[1734859346822,1.5123,184.76,184.7,23.776884]
[1734859347030,1.01487713,184.8,184.7,23.776884]
[1734859347031,1.01487713,184.8,184.72,34.90593552]
[1734859347247,1.6518,184.81,184.73,23.776884]
[1734859347248,2.66651173,184.81,184.73,23.776884]
[1734859347539,2.66651173,184.81,184.72,23.776884]
[1734859348728,2.66651173,184.81,184.7,24.66445152]
[1734859348922,2.66651173,184.81,184.68,11.12905152]
[1734859349126,2.66651173,184.81,184.67,11.12905152]
[1734859349727,20.0,184.8,184.67,11.12905152]
[1734859349904,1.01505436,184.79,184.67,11.12905152]
[1734859350334,1.01505436,184.79,184.68,23.776884]
[1734859350517,1.01505436,184.79,184.68,11.12905152]
[1734859350718,1.01505436,184.79,184.68,11.88077996]
[1734859352632,1.01505436,184.79,184.68,11.12905152]
[1734859352857,1.01505436,184.79,184.67,11.12905152]
[1734859353234,1.01505436,184.79,184.68,23.776884]
[1734859353410,1.01505436,184.79,184.68,34.90593552]
[1734859354033,1.6518,184.77,184.64,13.5397]
[1734859354269,1.01515331,184.76,184.66,23.776884]
[1734859354424,1.01515331,184.76,184.66,11.12905152]
[1734859354617,1.01515331,184.76,184.67,23.776884]
[1734859358230,1.01515331,184.76,184.66,23.776884]
[1734859359649,1.01515331,184.76,184.66,34.90593552]
[1734859361330,1.01515331,184.76,184.67,11.12905152]
[1734859361525,1.01515331,184.76,184.68,11.12905152]
[1734859361734,1.01515331,184.76,184.69,23.776884]
[1734859363845,1.01515331,184.76,184.68,23.776884]
[1734859364141,1.01515331,184.76,184.65,11.12905152]
[1734859364347,1.01515331,184.76,184.66,23.776884]
[1734859364526,20.0,184.74,184.62,15.87862246]
[1734859364729,1.01527008,184.73,184.63,11.12905152]
[1734859365737,1.01527008,184.73,184.64,34.90593552]
[1734859365924,1.01527008,184.73,184.64,11.12905152]
[1734859371130,1.01517627,184.76,184.66,23.776884]
[1734859371547,20.0,184.75,184.66,23.776884]
[1734859371740,1.01511845,184.74,184.66,23.776884]
[1734859375653,1.0150871,184.75,184.66,34.90593552]
[1734859376961,2.66684656,184.77,184.66,34.90593552]
[1734859377482,2.66684656,184.77,184.67,11.12905152]
[1734859377759,2.66684656,184.77,184.68,23.776884]
[1734859377952,2.66684656,184.77,184.66,34.90593552]
[1734859378358,2.66684656,184.77,184.67,11.12905152]
[1734859378867,2.66684656,184.77,184.68,23.776884]
[1734859382147,2.66684656,184.77,184.68,34.90593552]
[1734859382442,1.6518,184.77,184.7,23.776884]
[1734859382855,1.6518,184.77,184.68,34.90593552]
[1734859383037,1.01492798,184.76,184.68,34.90593552]
[1734859383242,1.01492798,184.76,184.68,23.776884]
[1734859383440,1.01492798,184.76,184.67,23.776884]
[1734859385962,1.01492798,184.76,184.67,34.90593552]
[1734859386141,1.01492798,184.76,184.67,11.12905152]
[1734859386344,1.6518,184.77,184.69,34.90593552]
[1734859387147,2.6666757,184.77,184.69,34.90593552]
[1734859387548,2.6666757,184.77,184.69,23.776884]
[1734859387850,2.6666757,184.77,184.68,23.776884]
[1734859388362,2.6666757,184.77,184.68,34.90593552]
[1734859388543,2.6666757,184.77,184.69,23.776884]
[1734859390655,1.6518,184.77,184.69,34.90593552]
[1734859390860,1.6518,184.77,184.7,11.12905152]
[1734859391174,1.6518,184.77,184.71,23.776884]
[1734859391860,1.6518,184.77,184.7,23.776884]
[1734859393177,1.6518,184.77,184.7,34.90593552]
[1734859393778,1.6518,184.77,184.7,23.776884]
[1734859399357,1.0148611,184.76,184.68,11.12905152]
[1734859399561,1.0148611,184.76,184.66,11.12905152]
[1734859400791,2.05280455,184.75,184.67,23.776884]
[1734859400969,1.015083,184.74,184.67,23.776884]
[1734859401182,3.06788755,184.74,184.67,23.776884]
[1734859401981,2.05280455,184.73,184.66,23.776884]
[1734859402356,2.05280455,184.73,184.66,24.52886106]
[1734859402552,2.05280455,184.72,184.66,35.65791258]
[1734859402879,2.05280455,184.71,184.66,35.65791258]
[1734859403368,2.05280455,184.7,184.66,35.65791258]
[1734859403568,2.05280455,184.7,184.65,34.90593552]
[1734859404076,2.05280455,184.69,184.65,34.90593552]
[1734859404265,2.05280455,184.68,184.65,34.90593552]
[1734859404471,2.05280455,184.68,184.67,11.12905152]
[1734859404675,2.05280455,184.68,184.67,34.90593552]
[1734859406095,1.01507782,184.76,184.68,23.776884]
[1734859406270,1.6518,184.77,184.68,35.65764411]
[1734859406474,2.05337885,184.75,184.69,11.12905152]
[1734859406659,2.05337885,184.75,184.7,23.776884]
[1734859406860,2.05337885,184.74,184.7,23.776884]
[1734859407785,2.05337885,184.73,184.7,24.52839079]
[1734859408285,2.05337885,184.72,184.7,23.776884]
[1734859408787,2.05337885,184.71,184.7,23.776884]
[1734859409689,1.6518,184.77,184.7,23.776884]
[1734859410269,2.0534433,184.76,184.7,23.776884]
[1734859410782,2.0534433,184.75,184.7,23.776884]
[1734859411689,2.0534433,184.74,184.7,23.776884]
[1734859412083,2.0534433,184.73,184.7,23.776884]
[1734859412488,2.0534433,184.72,184.7,23.776884]
[1734859412875,2.0534433,184.71,184.7,23.776884]
[1734859413189,2.0534433,184.71,184.68,23.776884]
[1734859413891,2.0534433,184.7,184.68,23.776884]
[1734859414596,2.0534433,184.69,184.68,23.776884]
[1734859418897,2.0534433,184.69,184.66,11.12905152]
[1734859419195,2.0534433,184.69,184.63,11.12905152]
[1734859419376,2.0534433,184.68,184.63,11.12905152]
[1734859419782,2.0534433,184.67,184.63,11.12905152]
[1734859420198,2.0534433,184.67,184.64,23.776884]
[1734859420385,2.0534433,184.66,184.6,0.75242195]
[1734859420589,2.0534433,184.66,184.6,11.12905152]
[1734859420904,2.0534433,184.65,184.6,11.12905152]
[1734859421404,2.0534433,184.64,184.6,11.12905152]
[1734859421898,2.61368334,184.71,184.6,11.12905152]
[1734859422288,2.05312172,184.7,184.61,23.776884]
[1734859422480,1.01543029,184.69,184.61,23.776884]
[1734859422688,3.06855201,184.69,184.61,23.776884]
[1734859423288,1.01543029,184.69,184.61,23.776884]
[1734859423486,3.06766401,184.68,184.61,23.776884]
[1734859424004,2.0522357,184.67,184.61,23.776884]
[1734859424388,2.0522357,184.67,184.59,34.90593552]
[1734859424593,2.0522357,184.66,184.59,34.90593552]
[1734859425191,2.0522357,184.65,184.59,34.90593552]
[1734859425605,2.0522357,184.65,184.6,11.12905152]
[1734859425794,2.0522357,184.65,184.6,11.88171261]
[1734859425998,2.0522357,184.64,184.6,11.88171261]
[1734859426509,2.0522357,184.63,184.6,11.88171261]
[1734859426818,1.01547132,184.68,184.6,11.88171261]
[1734859427306,2.04754944,184.67,184.64,11.12905152]
[1734859427482,2.04754944,184.67,184.65,23.776884]
[1734859427683,2.04754944,184.66,184.65,23.776884]
[1734859428409,1.5983,184.71,184.65,23.776884]
[1734859428907,2.04703935,184.7,184.65,23.776884]
[1734859429512,2.04703935,184.69,184.65,34.90593552]
[1734859429905,6.6619,184.72,184.65,34.90593552]
[1734859429906,2.04703935,184.68,184.65,34.90593552]
[1734859430407,6.6619,184.72,184.65,34.90593552]
[1734859430787,2.04684436,184.71,184.65,34.90593552]
[1734859431206,2.04684436,184.7,184.65,34.90593552]
[1734859431712,2.04684436,184.69,184.65,34.90593552]
[1734859432116,2.04684436,184.69,184.67,34.90593552]
[1734859432444,2.04684436,184.68,184.67,34.90593552]
[1734859432991,2.55536223,184.75,184.67,34.90593552]
[1734859433389,2.04684622,184.74,184.67,34.90593552]
[1734859433804,2.04684622,184.73,184.67,34.90593552]
[1734859434135,2.04684622,184.72,184.67,34.90593552]
[1734859434519,2.04684622,184.71,184.67,34.90593552]
[1734859434890,2.04684622,184.7,184.67,34.90593552]
[1734859435824,1.5404,184.75,184.67,34.90593552]
[1734859436203,2.04700311,184.74,184.67,34.90593552]
[1734859436525,2.04700311,184.73,184.67,34.90593552]
[1734859437019,2.04700311,184.72,184.67,34.90593552]
[1734859437731,2.04700311,184.71,184.67,34.90593552]
[1734859438031,2.04700311,184.7,184.67,34.90593552]
[1734859438726,1.5404,184.75,184.67,34.90593552]
[1734859439035,2.04736275,184.74,184.67,34.90593552]
[1734859439636,2.04736275,184.73,184.67,34.90593552]
[1734859440028,2.04736275,184.72,184.67,34.90593552]
[1734859440229,2.04736275,184.72,184.67,23.776884]
[1734859440599,2.04736275,184.71,184.67,23.776884]
[1734859441130,2.04736275,184.7,184.67,23.776884]
[1734859441739,2.04736275,184.69,184.67,23.776884]
[1734859442238,1.5404,184.75,184.67,34.90593552]
[1734859442538,1.5404,184.75,184.67,35.65771949]
[1734859442743,2.04783915,184.74,184.67,35.65771949]
[1734859442955,2.04783915,184.74,184.69,23.776884]
[1734859443325,2.04783915,184.74,184.69,24.52850338]
[1734859443518,2.04783915,184.73,184.69,24.52850338]
[1734859443940,2.04783915,184.72,184.69,24.52850338]
[1734859444368,2.04783915,184.71,184.69,24.52850338]
[1734859444846,2.04783915,184.7,184.69,24.52850338]
[1734859445849,2.04783915,184.7,184.69,35.03142552]
[1734859446053,2.04783915,184.7,184.69,37.32448354]
[1734859446547,2.04783915,184.8,184.69,37.32448354]
[1734859446729,2.04783915,184.8,184.73,34.90593552]
[1734859447135,2.04783915,184.79,184.73,34.90593552]
[1734859447519,2.04783915,184.79,184.75,23.776884]
[1734859447729,2.04783915,184.78,184.75,23.776884]
[1734859448139,2.04783915,184.77,184.75,23.776884]
[1734859448729,2.04783915,184.76,184.75,23.776884]
[1734859449545,2.04783915,184.76,184.75,34.90593552]
[1734859449742,2.04783915,184.76,184.75,35.65676754]
[1734859451874,2.04783915,184.76,184.74,34.90593552]
[1734859452356,2.04783915,184.76,184.75,35.65700466]
[1734859452583,1.01450115,184.83,184.75,35.65700466]
[1734859453058,2.04683669,184.82,184.75,35.65700466]
[1734859453224,1.01454792,184.81,184.73,0.75092153]
[1734859453548,1.01454792,184.81,184.72,31.12905152]
[1734859453755,2.04683669,184.8,184.72,31.12905152]
[1734859454128,1.01476613,184.79,184.72,20.0]
[1734859454335,3.06160282,184.79,184.72,20.0]
[1734859454538,2.04683669,184.79,184.72,20.0]
[1734859454751,2.04683669,184.79,184.72,31.12905152]
[1734859455059,1.01481641,184.82,184.72,31.12905152]
[1734859455060,2.04683669,184.78,184.74,11.12905152]
[1734859455362,2.04683669,184.78,184.77,34.90593552]
[1734859455655,2.04683669,184.78,184.77,35.6565543]
[1734859455863,9.99613807,184.88,184.78,23.776884]
[1734859456157,1.01428501,184.87,184.8,23.776884]
[1734859456346,2.04658476,184.87,184.82,23.776884]
[1734859456732,2.04658476,184.86,184.82,23.776884]
[1734859457353,2.04658476,184.86,184.79,11.12905152]
[1734859457354,2.04658476,184.85,184.8,23.776884]
[1734859458166,2.04658476,184.84,184.8,35.65638433]
[1734859458874,2.04658476,184.83,184.82,23.776884]
[1734859459054,2.04658476,184.83,184.8,35.65638433]
[1734859459473,1.01416397,184.89,184.8,24.52733281]
[1734859459658,1.01416397,184.89,184.8,35.65638433]
[1734859459855,1.01416397,184.89,184.8,24.52733281]
[1734859460071,1.01416397,184.89,184.79,11.12905152]
[1734859460275,2.04315952,184.88,184.79,11.12905152]
[1734859460480,2.04315952,184.88,184.8,0.75050308]
[1734859460777,2.04315952,184.87,184.8,0.75050308]
[1734859460951,2.04315952,184.87,184.81,11.12905152]
[1734859461157,2.04315952,184.86,184.82,0.75017478]
[1734859461383,2.04315952,184.86,184.83,23.776884]
[1734859461751,2.04315952,184.85,184.83,23.776884]
[1734859462266,2.04315952,184.84,184.83,23.776884]
[1734859462866,2.04315952,184.84,184.82,23.776884]
[1734859463172,2.04315952,184.83,184.81,23.776884]
[1734859463675,1.01421253,184.89,184.81,23.776884]
[1734859464481,2.04029708,184.88,184.81,23.776884]
[1734859465075,2.04029708,184.87,184.81,23.776884]
[1734859465650,2.04029708,184.86,184.81,23.776884]
[1734859466071,2.04029708,184.85,184.81,23.776884]
[1734859466484,2.04029708,184.84,184.81,23.776884]
[1734859467077,1.01423252,184.89,184.81,23.776884]
[1734859467780,2.03890825,184.88,184.81,23.776884]
[1734859468166,2.03890825,184.87,184.81,23.776884]
[1734859468480,2.03890825,184.88,184.81,23.776884]
[1734859469074,2.03890825,184.87,184.81,23.776884]
[1734859469488,2.03890825,184.86,184.81,23.776884]
[1734859470084,2.03890825,184.88,184.81,23.776884]
[1734859470762,2.03890825,184.87,184.81,23.776884]
[1734859471258,2.03890825,184.86,184.81,23.776884]
[1734859471784,2.03890825,184.85,184.81,23.776884]
[1734859472487,2.03890825,184.88,184.81,23.776884]
[1734859472983,2.03890825,184.87,184.81,23.776884]
[1734859473883,2.03890825,184.86,184.83,23.776884]
[1734859474099,2.03890825,184.85,184.83,23.776884]
[1734859474690,2.03890825,184.89,184.83,23.776884]
[1734859475087,1.01417809,184.88,184.81,1.6143]
[1734859475290,3.05308634,184.88,184.81,1.6143]
[1734859475770,2.03890825,184.87,184.81,1.6143]
[1734859475971,2.03890825,184.87,184.8,23.776884]
[1734859476177,3.05330191,184.86,184.77,13.49396452]
[1734859476903,2.03890825,184.85,184.77,13.49396452]
[1734859477387,2.03890825,184.85,184.78,34.90593552]
[1734859477565,2.03890825,184.84,184.79,0.75048677]
[1734859478170,2.03890825,184.83,184.8,23.776884]
[1734859478593,2.03890825,184.82,184.8,23.776884]
[1734859479187,1.01440408,184.88,184.8,23.776884]
[1734859479188,2.03890825,184.87,184.8,23.776884]
[1734859479490,2.03890825,184.86,184.81,0.75043611]
[1734859479887,2.03890825,184.85,184.81,0.75043611]
[1734859480493,2.03890825,184.84,184.81,0.75043611]
[1734859480863,2.03890825,184.88,184.81,0.75043611]
[1734859481174,2.03890825,184.88,184.82,23.776884]
[1734859481368,2.03890825,184.88,184.83,0.75011123]
[1734859481674,2.03890825,184.87,184.83,0.75011123]
[1734859481874,2.03890825,184.87,184.82,23.776884]
[1734859482088,2.03890825,184.86,184.82,23.776884]
[1734859482592,2.03890825,184.85,184.82,23.776884]
[1734859483083,2.03890825,184.85,184.81,0.75021847]
[1734859483084,2.03890825,184.91,184.81,23.776884]
[1734859483282,2.03890825,184.91,184.81,24.52726344]
[1734859483283,1.01423312,184.9,184.81,24.52726344]
[1734859483691,2.03890825,184.89,184.81,24.52726344]
[1734859484090,1.01425014,184.88,184.81,23.776884]
[1734859484298,3.05315839,184.88,184.8,23.776884]
[1734859484795,2.03890825,184.87,184.8,23.776884]
[1734859485384,2.03890825,184.86,184.8,23.776884]
[1734859485593,2.03890825,184.86,184.82,23.776884]
[1734859485894,2.03890825,184.88,184.82,23.776884]
[1734859486509,2.03890825,184.87,184.82,23.776884]
[1734859487098,2.03890825,184.86,184.82,23.776884]
[1734859487592,1.01426647,184.92,184.82,34.90593552]
[1734859488112,2.04542031,184.91,184.82,34.90593552]
[1734859488671,2.04542031,184.9,184.84,23.776884]
[1734859489185,2.04542031,184.89,184.83,23.776884]
[1734859489803,2.04542031,184.88,184.83,23.776884]
[1734859490224,2.04542031,184.87,184.83,23.776884]
[1734859490378,2.04542031,184.87,184.84,11.12905152]
[1734859490584,2.04542031,184.86,184.85,23.776884]
[1734859490888,2.04542031,184.86,184.85,34.90593552]
[1734859491583,2.04542031,184.95,184.85,34.90593552]
[1734859491778,2.04542031,184.95,184.87,23.776884]
[1734859492086,2.04542031,184.94,184.87,23.776884]
[1734859492630,2.04542031,184.93,184.87,23.776884]
[1734859493304,2.04542031,184.92,184.89,23.776884]
[1734859494005,2.04542031,184.91,184.89,34.90593552]
[1734859494610,2.04542031,184.9,184.89,34.90593552]
[1734859495688,2.04542031,184.97,184.89,23.776884]
[1734859495889,6.484,184.95,184.82,11.12905152]
[1734859496098,1.01409465,184.94,184.83,11.12905152]
[1734859496420,2.04542031,184.93,184.83,11.12905152]
[1734859496609,1.01410775,184.92,184.84,11.12905152]
[1734859497018,2.04542031,184.91,184.84,11.12905152]
[1734859497382,2.04542031,184.9,184.84,11.12905152]
[1734859497910,2.04542031,184.89,184.84,11.12905152]
[1734859498230,2.04542031,184.89,184.85,35.65590976]
[1734859498397,2.04542031,184.88,184.85,35.65590976]
[1734859498604,2.04542031,184.88,184.85,34.90593552]
[1734859499114,2.04542031,184.87,184.85,34.90593552]
[1734859499489,1.0140878,184.94,184.85,34.90593552]
[1734859500224,2.04807154,184.93,184.85,34.90593552]
[1734859500791,2.04807154,184.92,184.85,23.776884]
[1734859501106,1.01402324,184.91,184.84,11.12905152]
[1734859501303,3.06209478,184.91,184.83,31.12905152]
[1734859501607,2.04807154,184.91,184.84,23.776884]
[1734859501815,2.04807154,184.9,184.84,23.776884]
[1734859502108,2.04807154,184.9,184.84,11.12905152]
[1734859502415,2.04807154,184.89,184.84,11.12905152]
[1734859503188,2.04807154,184.88,184.84,11.12905152]
[1734859503924,2.04807154,184.87,184.84,11.12905152]
[1734859504319,2.04807154,184.86,184.84,11.12905152]
[1734859504924,1.01414811,184.94,184.84,11.12905152]
[1734859505536,2.04852921,184.93,184.84,11.12905152]
[1734859505821,1.01410812,184.92,184.84,11.12905152]
[1734859506318,2.04852921,184.91,184.85,11.87909681]
[1734859506695,2.04852921,184.9,184.85,11.87909681]
[1734859507312,2.04852921,184.89,184.86,23.776884]
[1734859507999,2.04852921,184.88,184.87,11.87885388]
[1734859508222,2.04852921,184.88,184.87,35.65573788]
[1734859508428,2.04852921,184.88,184.87,35.78122788]
[1734859509014,1.5645,184.98,184.88,23.776884]
[1734859509232,1.5645,184.98,184.91,34.90593552]
[1734859509408,6.0414,185.0,184.93,23.776884]
[1734859509409,2.04814904,184.97,184.93,23.776884]
[1734859509730,2.04814904,184.97,184.95,34.90593552]
[1734859510027,2.04814904,184.96,184.95,23.776884]
[1734859510389,1.6229,185.02,184.95,23.776884]
[1734859511540,1.01345941,185.07,184.98,11.12905152]
[1734859511822,0.6911367,185.08,185.0,23.776884]
[1734859511823,1.70441618,185.08,185.0,23.776884]
[1734859512191,1.70441618,185.08,184.99,23.776884]
[1734859513420,1.01327948,185.08,184.99,23.776884]
[1734859513640,6.0414,185.09,184.99,23.776884]
[1734859513641,5.24581618,185.09,184.99,23.776884]
[1734859514220,1.6229,185.11,185.0,11.93963082]
[1734859514406,1.6229,185.11,185.01,34.90593552]
[1734859514734,1.6229,185.11,185.01,23.776884]
[1734859515915,21.6229,185.11,185.01,34.90593552]
[1734859516102,21.6229,185.11,185.01,35.71635268]
[1734859516713,20.0,185.11,185.01,35.71635268]
[1734859516898,20.0,185.11,185.03,34.90593552]
[1734859517208,20.0,185.11,185.05,23.776884]
[1734859517399,6.5963,185.16,185.07,23.776884]
[1734859518195,39.08844147,185.18,185.09,11.12905152]
[1734859518395,1.6494,185.19,185.1,23.776884]
[1734859519245,6.5963,185.21,185.12,23.776884]
[1734859519564,10.93528918,185.23,185.12,35.71596725]
[1734859519698,10.93528918,185.23,185.12,24.58691573]
[1734859519931,10.93528918,185.23,185.12,23.776884]
[1734859520439,10.93528918,185.23,185.11,11.12905152]
[1734859520622,10.93528918,185.23,185.12,34.90593552]
[1734859521129,10.93528918,185.23,185.12,23.776884]
[1734859521349,10.93528918,185.23,185.11,23.776884]
[1734859521924,5.6986,185.23,185.12,23.776884]
[1734859522112,5.6986,185.23,185.12,11.12905152]
[1734859522313,2.17290183,185.25,185.12,11.12905152]
[1734859522314,7.2874367,185.26,185.15,23.776884]
[1734859523334,7.2874367,185.26,185.15,11.12905152]
[1734859523834,7.2874367,185.26,185.16,23.776884]
[1734859524214,0.6911367,185.26,185.17,11.12905152]
[1734859524421,0.6911367,185.26,185.2,34.90593552]
[1734859524932,0.6911367,185.26,185.18,6.5175]
[1734859525139,0.6911367,185.26,185.14,0.80973106]
[1734859525140,0.6911367,185.26,185.14,23.776884]
[1734859526549,4.0485,185.25,185.14,23.776884]
[1734859526746,4.0485,185.25,185.14,34.90593552]
[1734859526949,0.6911367,185.26,185.17,11.12905152]
[1734859527328,0.6911367,185.26,185.18,11.12905152]
[1734859527525,0.6911367,185.26,185.19,34.90593552]
[1734859527726,0.6911367,185.26,185.18,34.90593552]
[1734859529244,0.6911367,185.26,185.18,23.776884]
[1734859529823,0.6911367,185.26,185.15,11.12905152]
[1734859530022,0.6911367,185.26,185.14,17.65698126]
[1734859531254,0.6911367,185.26,185.15,17.65698126]
[1734859531422,0.6911367,185.26,185.16,17.65698126]
[1734859531621,0.6911367,185.26,185.17,23.776884]
[1734859532318,0.6911367,185.26,185.16,17.65698126]
[1734859532319,0.6911367,185.26,185.16,41.43386526]
[1734859533664,0.6911367,185.26,185.18,23.776884]
[1734859534996,0.6911367,185.26,185.18,41.43386526]
[1734859535454,0.6911367,185.26,185.18,23.776884]
[1734859538061,0.6911367,185.26,185.18,41.43386526]
[1734859539395,0.6911367,185.26,185.18,23.776884]
[1734859540269,0.6911367,185.26,185.15,41.43386526]
[1734859543567,0.6911367,185.26,185.15,23.776884]
[1734859544067,20.0,185.24,185.16,17.65698126]
[1734859544681,20.6911367,185.26,185.16,17.65698126]
[1734859545370,20.6911367,185.26,185.17,23.776884]
[1734859545799,20.6911367,185.26,185.16,23.776884]
[1734859547584,20.6911367,185.26,185.17,0.8098605]
[1734859547890,20.6911367,185.26,185.18,41.43386526]
[1734859548044,0.6911367,185.26,185.18,41.43386526]
[1734859548666,0.6911367,185.26,185.19,0.80971791]
[1734859548876,0.6911367,185.26,185.2,23.776884]
[1734859549243,0.6911367,185.26,185.18,23.776884]
[1734859549976,0.6911367,185.26,185.18,41.43386526]
[1734859550277,0.6911367,185.26,185.18,34.80857221]
[1734859550564,0.6911367,185.26,185.18,23.776884]
[1734859550776,0.6911367,185.26,185.17,23.776884]
[1734859551067,0.6911367,185.26,185.17,11.03168821]
[1734859551268,0.6911367,185.26,185.18,23.776884]
[1734859551447,0.6911367,185.26,185.19,23.776884]
[1734859552243,0.6911367,185.26,185.19,34.80857221]
[1734859552443,0.6911367,185.26,185.21,23.776884]
[1734859554337,0.6911367,185.26,185.23,23.776884]
[1734859558480,0.6911367,185.26,185.23,34.80857221]
[1734859558850,0.6911367,185.26,185.23,23.776884]
[1734859560295,0.6911367,185.26,185.25,23.776884]
[1734859560793,0.6911367,185.26,185.25,34.80857221]
[1734859561352,0.6911367,185.26,185.25,35.61798512]
[1734859561767,0.6911367,185.26,185.25,37.12568512]
[1734859565893,0.6911367,185.26,185.23,11.03168821]
[1734859566188,0.6911367,185.26,185.24,11.8412401]
[1734859567701,0.6911367,185.26,185.25,23.776884]
[1734859568266,0.6911367,185.26,185.25,34.80857221]
[1734859569695,3.67e-05,185.26,185.25,34.93406221]
[1734859569895,1.542,185.4,185.28,20.0]
[1734859570111,1.542,185.4,185.32,11.03168821]
[1734859570307,2.2331367,185.45,185.35,11.03168821]
[1734859570785,2.2331367,185.45,185.37,11.03168821]
[1734859570991,2.2331367,185.45,185.32,11.8406167]
[1734859571409,2.2331367,185.45,185.32,0.80892849]
[1734859571780,2.2331367,185.45,185.32,11.8406167]
[1734859572226,2.2331367,185.45,185.33,23.776884]
[1734859574310,20.0,185.41,185.29,0.80912128]
[1734859574470,6.1259,185.39,185.24,11.03168821]
[1734859575126,6.1259,185.39,185.25,0.80941547]
[1734859575508,10.1715,185.39,185.26,23.776884]
[1734859575712,20.0,185.36,185.26,23.776884]